fUSD/lending_fUSD_20240201
["ID","MTS","AMOUNT","RATE_DAILY","PERIOD"]
[313136288,1706795475897,-152.0,0.00046414,18]
[313136289,1706795475907,-287.51496848,0.00046414,5]
[313136290,1706795475916,-150.0,0.00046429,30]
[313136291,1706795475926,-512.82036858,0.00046438,21]
[313136292,1706795475935,-500.0,0.00046448,7]
[313136293,1706795475945,-175.15138576,0.00046472,30]
[313136294,1706795475954,-166.99392,0.00046495,4]
[313136295,1706795475964,-157.0201,0.00046498,22]
[313136296,1706795475974,-315.0,0.000465,2]
[313136297,1706795475983,-300.0,0.000465,42]
[313136298,1706795475992,-10000.0,0.000465,9]
[313136299,1706795476001,-10000.0,0.000465,9]
[313136300,1706795476011,-6673.0,0.000465,9]
[313136301,1706795476020,-443.0,0.000465,36]
[313136302,1706795476029,-150.0,0.000465,17]
[313136303,1706795476038,-150.0,0.00046503,2]
[313136304,1706795476047,-150.0,0.00046522,30]
[313136305,1706795476056,-500.0,0.00046558,5]
[313136306,1706795476066,-1802.34,0.00046575,4]
[313136307,1706795476076,-500.9,0.00046575,4]
[313136308,1706795476086,-500.0,0.00046575,4]
[313136309,1706795476095,-2638.45,0.00046575,30]
[313136310,1706795476105,-918.04,0.00046575,4]
[313136311,1706795476114,-187.5,0.00046575,120]
[313136312,1706795476123,-500.0,0.00046575,4]
[313136313,1706795476132,-532.35,0.00046575,4]
[313136314,1706795476142,-1038.98,0.00046575,4]
[313136315,1706795476152,-500.0,0.00046575,4]
[313136316,1706795476162,-630.44,0.00046575,4]
[313136317,1706795476171,-7491.3,0.00046575,4]
[313136318,1706795476181,-649.07,0.00046575,4]
[313136319,1706795476191,-1993.07,0.00046575,4]
[313136320,1706795476200,-5037.04,0.00046575,4]
[313136321,1706795476209,-664.31,0.00046575,4]
[313136322,1706795476218,-855.46,0.00046575,4]
[313136323,1706795476228,-1589.64,0.00046575,4]
[313136324,1706795476237,-1069.77,0.00046575,4]
[313136325,1706795476247,-731.97,0.00046575,4]
[313136326,1706795476256,-255.98700229,0.00046575,4]
[313136327,1706795476265,-552.56,0.00046575,4]
[313136328,1706795476274,-500.0,0.00046575,4]
[313136329,1706795476283,-586.13,0.00046575,4]
[313136330,1706795476292,-500.0,0.00046575,4]
[313136331,1706795476302,-500.0,0.00046575,4]
[313136332,1706795476311,-775.07,0.00046575,4]
[313136333,1706795476323,-500.0,0.00046575,4]
[313136334,1706795476332,-842.52,0.00046575,4]
[313136335,1706795476340,-500.0,0.00046575,5]
[313136336,1706795476349,-500.0,0.00046575,4]
[313136337,1706795476358,-623.0,0.00046575,5]
[313136338,1706795476368,-1135.03,0.00046575,4]
[313136339,1706795476378,-500.0,0.00046575,4]
[313136340,1706795476387,-539.73,0.00046575,4]
[313136341,1706795476397,-1000.0,0.00046575,30]
[313136342,1706795476406,-1000.0,0.00046575,30]
[313136343,1706795476416,-1000.0,0.00046575,30]
[313136344,1706795476426,-1000.0,0.00046575,30]
[313136345,1706795476435,-1000.0,0.00046575,30]
[313136346,1706795476445,-1000.0,0.00046575,30]
[313136347,1706795476455,-1000.0,0.00046575,30]
[313136348,1706795476466,-1000.0,0.00046575,30]
[313136349,1706795476476,-1000.0,0.00046575,30]
[313136350,1706795476487,-671.41281399,0.00046575,30]
[313136351,1706795476498,-447.42366545,0.00046575,4]
[313136352,1706795476507,-500.0,0.00046575,4]
[313136353,1706795476518,-500.0,0.00046575,4]
[313136354,1706795476527,-450.0,0.00046586,30]
[313136355,1706795476537,-166.6666667,0.00046587,30]
[313136356,1706795476546,-3000.0,0.000466,2]
[313136357,1706795476555,-8000.0,0.000466,2]
[313136358,1706795476564,-1658.06752764,0.00046606,30]
[313136359,1706795476576,-1078.62871291,0.00046616,30]
[313136360,1706795476585,-150.88124633,0.00046618,30]
[313136361,1706795476595,-175.15138576,0.00046646,30]
[313136362,1706795476604,-333.33845262,0.0004665,30]
[313136363,1706795476613,-70205.0,0.00046657,30]
[313136364,1706795476623,-563.0,0.00046657,30]
[313136365,1706795476633,-150.0,0.00046667,30]
[313136366,1706795476643,-150.0,0.00046667,30]
[313136367,1706795476653,-1658.06752764,0.00046685,30]
[313136368,1706795476662,-1658.06752764,0.00046699,30]
[313136369,1706795476672,-500.0,0.000467,30]
[313136370,1706795476681,-500.0,0.000467,30]
[313136371,1706795476691,-500.0,0.000467,30]
[313136372,1706795476700,-500.0,0.000467,30]
[313136373,1706795476709,-500.0,0.000467,30]
[313136374,1706795476718,-500.0,0.000467,30]
[313136375,1706795476728,-500.0,0.000467,30]
[313136376,1706795476736,-500.0,0.000467,30]
[313136377,1706795476745,-693.0,0.000467,30]
[313136378,1706795476755,-296510.58543361,0.000467,45]
[313136379,1706795476764,-951.0,0.000467,30]
[313136380,1706795476774,-677.55091523,0.00046704,30]
[313136381,1706795476783,-494.21814869,0.00046704,32]
[313136382,1706795476792,-993.0,0.00046704,32]
[313136383,1706795476801,-993.0,0.00046704,32]
[313136384,1706795476810,-993.0,0.00046704,32]
[313136385,1706795476820,-150.0,0.00046739,30]
[313136386,1706795476829,-20076.19,0.0004675,4]
[313136387,1706795476839,-157.0201,0.00046798,22]
[313136388,1706795476848,-983.36,0.000468,13]
[313136389,1706795476857,-500.0,0.0004683,7]
[313136390,1706795476867,-1078.62871291,0.00046841,30]
[313136391,1706795476876,-450.0,0.00046847,30]
[313136392,1706795476885,-152.96362477,0.00046864,30]
[313136393,1706795476895,-1037.7429638,0.00046866,30]
[313136394,1706795476905,-194.89751992,0.00046884,30]
[313136395,1706795476914,-1208.0,0.00046885,30]
[313136396,1706795476924,-200.0,0.000469,17]
[313136397,1706795476934,-7000.0,0.00046933,2]
[313136398,1706795476945,-151.75717388,0.0004694,30]
[313136399,1706795476954,-150.0,0.00046957,30]
[313136400,1706795476963,-1241.56,0.0004697,2]
[313136401,1706795476973,-4000.0,0.00046984,31]
[313136402,1706795476982,-200.0,0.00046987,33]
[313136403,1706795476991,-200.0,0.00046987,32]
[313136404,1706795477001,-151.75717388,0.00046988,30]
[313136405,1706795477011,-10934.0,0.0004699,2]
[313136406,1706795477021,-5865.0,0.0004699,2]
[313136407,1706795477030,-151.0201,0.00046998,26]
[313136408,1706795477039,-151.75717388,0.00046999,30]
[313136409,1706795477049,-100000.0,0.00047,37]
[313136410,1706795477058,-150.0,0.00047,30]
[313136411,1706795477067,-2000.0,0.00047,30]
[313136412,1706795477077,-315.0,0.00047,2]
[313136413,1706795477086,-150797.7111541,0.00047,2]
[313136414,1706795477096,-1161.04982451,0.00047,30]
[313136415,1706795477105,-3000.0,0.00047,95]
[313136416,1706795477256,-3000.0,0.00047,120]
[313136417,1706795477265,-300.0,0.00047,43]
[313136418,1706795477274,-1000.0,0.00047,30]
[313136419,1706795477283,-1000.0,0.00047,30]
[313136420,1706795477293,-1511.0,0.00047,30]
[313136421,1706795477302,-500.0,0.00047,110]
[313136422,1706795477311,-1500.0,0.00047,120]
[313136423,1706795477322,-10375.0,0.00047,7]
[313136424,1706795477331,-10000.0,0.00047,2]
[313136425,1706795477340,-443.0,0.00047,37]
[313136426,1706795477350,-150.0,0.00047,18]
[313136427,1706795477359,-150.0,0.00047,30]
[313136428,1706795477369,-1037.7429638,0.00047043,30]
[313136429,1706795477378,-1037.7429638,0.00047054,30]
[313136430,1706795477387,-175.15138576,0.00047082,30]
[313136431,1706795477396,-1000.0,0.000471,2]
[313136432,1706795477406,-153.02555374,0.00047101,30]
[313136433,1706795477416,-153.02555374,0.00047107,30]
[313136434,1706795477425,-450.0,0.00047108,30]
[313136435,1706795477434,-1802.34,0.00047123,4]
[313136436,1706795477443,-500.9,0.00047123,4]
[313136437,1706795477452,-500.0,0.00047123,4]
[313136438,1706795477461,-2638.45,0.00047123,30]
[313136439,1706795477475,-918.04,0.00047123,4]
[313136440,1706795477485,-500.0,0.00047123,4]
[313136441,1706795477494,-532.35,0.00047123,4]
[313136442,1706795477503,-1038.98,0.00047123,4]
[313136443,1706795477514,-500.0,0.00047123,4]
[313136444,1706795477523,-630.44,0.00047123,4]
[313136445,1706795477532,-7491.3,0.00047123,4]
[313136446,1706795477542,-649.07,0.00047123,4]
[313136447,1706795477552,-1993.07,0.00047123,4]
[313136448,1706795477561,-5037.04,0.00047123,4]
[313136449,1706795477571,-664.31,0.00047123,4]
[313136450,1706795477581,-855.46,0.00047123,4]
[313136451,1706795477590,-1589.64,0.00047123,4]
[313136452,1706795477600,-1069.77,0.00047123,4]
[313136453,1706795477609,-731.97,0.00047123,4]
[313136454,1706795477618,-552.56,0.00047123,4]
[313136455,1706795477628,-591.2608615,0.00047123,4]
[313136456,1706795477637,-586.13,0.00047123,4]
[313136457,1706795477648,-500.0,0.00047123,4]
[313136458,1706795477659,-500.0,0.00047123,4]
[313136459,1706795477668,-775.07,0.00047123,4]
[313136460,1706795477678,-500.0,0.00047123,4]
[313136461,1706795477687,-842.52,0.00047123,4]
[313136462,1706795477697,-330.26926893,0.00047123,5]
[313136463,1706795477707,-500.0,0.00047123,4]
[313136464,1706795477716,-623.0,0.00047123,5]
[313136465,1706795477727,-1135.03,0.00047123,4]
[313136466,1706795477736,-500.0,0.00047123,4]
[313136467,1706795477746,-539.73,0.00047123,4]
[313136468,1706795477755,-500.0,0.00047123,4]
[313136469,1706795477765,-500.0,0.00047123,4]
[313136470,1706795477774,-227.88,0.00047123,2]
[313136471,1706795477784,-416.91,0.00047123,2]
[313136472,1706795477793,-416.91,0.00047123,2]
[313136473,1706795477803,-284.88,0.00047123,2]
[313136474,1706795477813,-410.14,0.00047123,2]
[313136475,1706795477823,-410.14,0.00047123,2]
[313136476,1706795477832,-410.14,0.00047123,2]
[313136477,1706795477842,-410.14,0.00047123,2]
[313136478,1706795477851,-410.14,0.00047123,2]
[313136479,1706795477860,-410.14,0.00047123,2]
[313136480,1706795477869,-410.14,0.00047123,2]
[313136481,1706795477879,-410.14,0.00047123,2]
[313136482,1706795477888,-410.14,0.00047123,2]
[313136483,1706795477898,-410.14,0.00047123,2]
[313136484,1706795477907,-410.14,0.00047123,2]
[313136485,1706795477916,-410.14,0.00047123,2]
[313136486,1706795477925,-410.14,0.00047123,2]
[313136487,1706795477935,-820.17,0.00047123,2]
[313136488,1706795477945,-410.14,0.00047123,2]
[313136489,1706795477954,-410.14,0.00047123,2]
[313136490,1706795477964,-410.14,0.00047123,2]
[313136491,1706795477974,-410.14,0.00047123,2]
[313136492,1706795477983,-410.14,0.00047123,2]
[313136493,1706795477993,-410.14,0.00047123,2]
[313136494,1706795478003,-410.14,0.00047123,2]
[313136495,1706795478012,-410.14,0.00047123,2]
[313136496,1706795478022,-1078.62871291,0.00047125,30]
[313136497,1706795478031,-70205.0,0.00047138,30]
[313136498,1706795478040,-563.0,0.00047138,30]
[313136499,1706795478049,-150.0,0.00047143,30]
[313136500,1706795478059,-1078.62871291,0.00047151,30]
[313136501,1706795478069,-352.80401804,0.00047168,30]
[313136502,1706795478080,-815.34337846,0.00047169,19]
[313136503,1706795478089,-152.96362477,0.0004717,30]
[313136504,1706795478099,-150.0,0.00047174,30]
[313136505,1706795478108,-157.0201,0.00047198,22]
[313136506,1706795478117,-500.0,0.00047212,7]
[313136507,1706795478127,-151.12552605,0.000473,34]
[313136508,1706795478137,-450.0,0.00047369,30]
[313136509,1706795478146,-515.32040897,0.00047383,30]
[313136510,1706795478155,-150.0,0.00047391,30]
[313136511,1706795478165,-1078.62871291,0.00047405,30]
[313136512,1706795478175,-175.15138576,0.00047429,30]
[313136513,1706795478184,-515.32040897,0.00047431,30]
[313136514,1706795478193,-1037.7429638,0.00047471,30]
[313136515,1706795478203,-313.74,0.0004749,2]
[313136516,1706795478213,-157.0201,0.00047498,22]
[313136517,1706795478222,-11941.26603079,0.000475,60]
[313136518,1706795478231,-315.0,0.000475,2]
[313136519,1706795478241,-300.0,0.000475,44]
[313136520,1706795478250,-520.63411822,0.000475,5]
[313136521,1706795478260,-3100.0,0.000475,60]
[313136522,1706795478269,-52433.0,0.000475,80]
[313136523,1706795478278,-1258730.68,0.000475,5]
[313136524,1706795478288,-200.0,0.000475,30]
[313136525,1706795478298,-670.53530605,0.000475,10]
[313136526,1706795478307,-462.775642,0.000475,37]
[313136527,1706795478317,-623.81671461,0.000475,2]
[313136528,1706795478328,-161.012,0.000475,120]
[313136529,1706795478337,-161.013,0.000475,120]
[313136530,1706795478347,-2972.725,0.000475,120]
[313136531,1706795478356,-161.012,0.000475,120]
[313136532,1706795478365,-2972.725,0.000475,120]
[313136533,1706795478376,-2972.726,0.000475,120]
[313136534,1706795478385,-2972.725,0.000475,120]
[313136535,1706795478395,-2972.725,0.000475,120]
[313136536,1706795478404,-150.0,0.000475,18]
[313136537,1706795478414,-239.76004914,0.000475,2]
[313136538,1706795478423,-150.0,0.000475,30]
[313136539,1706795478433,-150.0,0.000475,30]
[313136540,1706795478443,-150.0,0.000475,30]
[313136541,1706795478452,-1658.06752764,0.00047559,30]
[313136542,1706795478462,-1458.57,0.00047572,15]
[313136543,1706795478471,-352.80401804,0.00047577,30]
[313136544,1706795478481,-150.0,0.00047585,2]
[313136545,1706795478494,-500.0,0.00047595,7]
[313136546,1706795478502,-5082.96530198,0.000476,2]
[313136547,1706795478512,-896.93,0.000476,18]
[313136548,1706795478522,-150.0,0.00047609,30]
[313136549,1706795478532,-70205.0,0.00047619,30]
[313136550,1706795478541,-563.0,0.00047619,30]
[313136551,1706795478550,-171.89380635,0.00047623,30]
[313136552,1706795478560,-450.0,0.00047631,30]
[313136553,1706795478569,-333.33845262,0.00047636,30]
[313136554,1706795478579,-515.32040897,0.00047655,30]
[313136555,1706795478589,-1802.34,0.00047671,4]
[313136556,1706795478599,-500.9,0.00047671,4]
[313136557,1706795478608,-351.38143986,0.00047671,4]
[313136558,1706795478617,-2638.45,0.00047671,30]
[313136559,1706795478627,-918.04,0.00047671,4]
[313136560,1706795478637,-500.0,0.00047671,4]
[313136561,1706795478646,-532.35,0.00047671,4]
[313136562,1706795478656,-1038.98,0.00047671,4]
[313136563,1706795478667,-500.0,0.00047671,4]
[313136564,1706795478677,-630.44,0.00047671,4]
[313136565,1706795478687,-7491.3,0.00047671,4]
[313136566,1706795478696,-649.07,0.00047671,4]
[313136567,1706795478706,-1993.07,0.00047671,4]
[313136568,1706795478715,-5037.04,0.00047671,4]
[313136569,1706795478724,-664.31,0.00047671,4]
[313136570,1706795478734,-855.46,0.00047671,4]
[313136571,1706795478744,-1589.64,0.00047671,4]
[313136572,1706795478754,-1069.77,0.00047671,4]
[313136573,1706795478763,-731.97,0.00047671,4]
[313136574,1706795478772,-552.56,0.00047671,4]
[313136575,1706795478782,-586.13,0.00047671,4]
[313136576,1706795478791,-500.0,0.00047671,4]
[313136577,1706795478801,-500.0,0.00047671,4]
[313136578,1706795478810,-775.07,0.00047671,4]
[313136579,1706795478819,-500.0,0.00047671,4]
[313136580,1706795478829,-842.52,0.00047671,4]
[313136581,1706795478839,-434.01232811,0.00047671,4]
[313136582,1706795478849,-623.0,0.00047671,5]
[313136583,1706795478858,-1135.03,0.00047671,4]
[313136584,1706795478868,-500.0,0.00047671,4]
[313136585,1706795478880,-539.73,0.00047671,4]
[313136586,1706795478890,-500.0,0.00047671,4]
[313136587,1706795478899,-437.19082914,0.00047671,4]
[313136588,1706795478908,-222.48064916,0.0004768,120]
[313136589,1706795478917,-500.0,0.00047686,5]
[313136590,1706795478927,-1078.62871291,0.00047693,30]
[313136591,1706795478936,-151.75717388,0.00047724,30]
[313136592,1706795478946,-1658.06752764,0.00047748,30]
[313136593,1706795478955,-251.0,0.0004777,120]
[313136594,1706795478965,-157.0201,0.00047798,22]
[313136595,1706795478974,-951.0,0.000478,30]
[313136596,1706795478983,-150.88124633,0.00047807,30]
[313136597,1706795478993,-577.95984234,0.00047821,30]
[313136598,1706795479002,-150.0,0.00047826,30]
[313136599,1706795479012,-515.32040897,0.00047839,30]
[313136600,1706795479021,-891.93381569,0.00047843,30]
[313136601,1706795479030,-150.0,0.00047857,30]
[313136602,1706795479039,-155.3,0.0004786,2]
[313136603,1706795479048,-50000.0,0.0004787,7]
[313136604,1706795479057,-8010.1974801,0.00047888,10]
[313136605,1706795479066,-450.0,0.00047892,30]
[313136606,1706795479076,-1037.7429638,0.00047892,30]
[313136607,1706795479085,-985.63,0.000479,16]
[313136608,1706795479094,-8000.0,0.000479,2]
[313136609,1706795479104,-5016.23380532,0.00047911,5]
[313136610,1706795479112,-666.0,0.00047945,2]
[313136611,1706795479121,-500.0,0.00047945,30]
[313136612,1706795479130,-410.14,0.00047945,2]
[313136613,1706795479139,-410.14,0.00047945,2]
[313136614,1706795479148,-410.14,0.00047945,2]
[313136615,1706795479157,-410.14,0.00047945,2]
[313136616,1706795479166,-410.14,0.00047945,2]
[313136617,1706795479175,-410.14,0.00047945,2]
[313136618,1706795479184,-406.12,0.00047945,2]
[313136619,1706795479194,-500.0,0.00047977,7]
[313136620,1706795479204,-200.0,0.00047987,34]
[313136621,1706795479213,-200.0,0.00047987,35]
[313136622,1706795479223,-153.02555374,0.00047992,30]
[313136623,1706795479232,-1078.62871291,0.00047992,30]
[313136624,1706795479242,-171.0201,0.00047998,26]
[313136625,1706795479252,-1000.0,0.00047999,120]
[313136626,1706795479261,-100000.0,0.00048,38]
[313136627,1706795479270,-13328.96549183,0.00048,30]
[313136628,1706795479280,-22187.85860418,0.00048,14]
[313136629,1706795479289,-800.0,0.00048,4]
[313136630,1706795479298,-863.64,0.00048,14]
[313136631,1706795479307,-3079.8939272,0.00048,120]
[313136632,1706795479317,-150.0,0.00048,30]
[313136633,1706795479326,-2000.0,0.00048,30]
[313136634,1706795479335,-315.0,0.00048,2]
[313136635,1706795479344,-1396.96,0.00048,7]
[313136636,1706795479353,-300.0,0.00048,45]
[313136637,1706795479362,-1000.0,0.00048,30]
[313136638,1706795479370,-1000.0,0.00048,30]
[313136639,1706795479379,-1000.0,0.00048,30]
[313136640,1706795479389,-2437.0,0.00048,120]
[313136641,1706795479398,-338863.79140405,0.00048,30]
[313136642,1706795479408,-500.0,0.00048,7]
[313136643,1706795479417,-109673.05127726,0.00048,7]
[313136644,1706795479426,-1018.0,0.00048,115]
[313136645,1706795479436,-983.63,0.00048,20]
[313136646,1706795479445,-24374.4618024,0.00048,4]
[313136647,1706795479454,-10238.06043939,0.00048,2]
[313136648,1706795479464,-10000.0,0.00048,2]
[313136649,1706795479477,-45130.45883184,0.00048,6]
[313136650,1706795479486,-3011.7375947,0.00048,48]
[313136651,1706795479496,-150.0,0.00048,30]
[313136652,1706795479504,-5764.041615,0.00048,52]
[313136653,1706795479514,-150.0,0.00048,19]
[313136654,1706795479523,-150.0,0.00048043,30]
[313136655,1706795479533,-333.33845262,0.00048081,30]
[313136656,1706795479542,-2000.0,0.00048092,2]
[313136657,1706795479552,-70205.0,0.000481,30]
[313136658,1706795479562,-231.01133717,0.000481,30]
[313136659,1706795479571,-563.0,0.000481,30]
[313136660,1706795479581,-1630.33727253,0.000481,30]
[313136661,1706795479590,-153.88,0.00048106,2]
[313136662,1706795479600,-175.15138576,0.00048113,30]
[313136663,1706795479610,-1000.0,0.00048118,2]
[313136664,1706795479619,-352.80401804,0.00048132,30]
[313136665,1706795479629,-450.0,0.00048153,30]
[313136666,1706795479638,-1658.06752764,0.00048182,30]
[313136667,1706795479648,-157.0201,0.00048198,24]
[313136668,1706795479658,-352.80401804,0.00048202,30]
[313136669,1706795479667,-1802.34,0.00048219,4]
[313136670,1706795479677,-500.9,0.00048219,4]
[313136671,1706795479686,-2638.45,0.00048219,30]
[313136672,1706795479695,-918.04,0.00048219,4]
[313136673,1706795479705,-298.16681465,0.00048219,4]
[313136674,1706795479714,-532.35,0.00048219,4]
[313136675,1706795479724,-1038.98,0.00048219,4]
[313136676,1706795479734,-500.0,0.00048219,4]
[313136677,1706795479743,-630.44,0.00048219,4]
[313136678,1706795479753,-7491.3,0.00048219,4]
[313136679,1706795479763,-649.07,0.00048219,4]
[313136680,1706795479773,-1993.07,0.00048219,4]
[313136681,1706795479783,-5037.04,0.00048219,4]
[313136682,1706795479794,-664.31,0.00048219,4]
[313136683,1706795479803,-855.46,0.00048219,4]
[313136684,1706795479814,-1589.64,0.00048219,4]
[313136685,1706795479824,-1069.77,0.00048219,4]
[313136686,1706795479834,-731.97,0.00048219,4]
[313136687,1706795479842,-552.56,0.00048219,4]
[313136688,1706795479852,-586.13,0.00048219,4]
[313136689,1706795479861,-155.32096724,0.00048219,4]
[313136690,1706795479872,-500.0,0.00048219,4]
[313136691,1706795479883,-775.07,0.00048219,4]
[313136692,1706795479892,-500.0,0.00048219,4]
[313136693,1706795479902,-842.52,0.00048219,4]
[313136694,1706795479912,-623.0,0.00048219,5]
[313136695,1706795479921,-1135.03,0.00048219,4]
[313136696,1706795479931,-500.0,0.00048219,4]
[313136697,1706795479940,-539.73,0.00048219,4]
[313136698,1706795479950,-431.55835263,0.00048219,4]
[313136699,1706795479960,-515.32040897,0.0004824,30]
[313136700,1706795479970,-150.0,0.00048261,30]
[313136701,1706795479980,-1078.62871291,0.00048274,30]
[313136702,1706795479989,-969.33,0.000483,18]
[313136703,1706795479998,-206.24768565,0.000483,2]
[313136704,1706795480009,-200.0,0.000483,2]
[313136705,1706795480019,-352.0184387,0.0004831,60]
[313136706,1706795480028,-25000.0,0.00048316,60]
[313136707,1706795480039,-25000.0,0.00048316,60]
[313136708,1706795480048,-25000.0,0.00048316,60]
[313136709,1706795480058,-25000.0,0.00048316,60]
[313136710,1706795480067,-25000.0,0.00048316,60]
[313136711,1706795480076,-25000.0,0.00048316,60]
[313136712,1706795480086,-25000.0,0.00048316,60]
[313136713,1706795480095,-25000.0,0.00048316,60]
[313136714,1706795480105,-25000.0,0.00048316,60]
[313136715,1706795480115,-25000.0,0.00048316,60]
[313136716,1706795480125,-25000.0,0.00048316,60]
[313136717,1706795480134,-25000.0,0.00048316,60]
[313136718,1706795480144,-25000.0,0.00048316,60]
[313136719,1706795480154,-25000.0,0.00048316,60]
[313136720,1706795480163,-25000.0,0.00048316,60]
[313136721,1706795480174,-25000.0,0.00048316,60]
[313136722,1706795480183,-25000.0,0.00048316,60]
[313136723,1706795480334,-25000.0,0.00048316,60]
[313136724,1706795480345,-25000.0,0.00048316,60]
[313136725,1706795480354,-25000.0,0.00048316,60]
[313136726,1706795480364,-25000.0,0.00048316,60]
[313136727,1706795480374,-25000.0,0.00048316,60]
[313136728,1706795480385,-25000.0,0.00048316,60]
[313136729,1706795480396,-25000.0,0.00048316,60]
[313136730,1706795480406,-25000.0,0.00048316,60]
[313136731,1706795480415,-25000.0,0.00048316,60]
[313136732,1706795480425,-25000.0,0.00048316,60]
[313136733,1706795480435,-25000.0,0.00048316,60]
[313136734,1706795480445,-9621.71842561,0.00048316,60]
[313136735,1706795480454,-25000.0,0.00048316,60]
[313136736,1706795480464,-25000.0,0.00048316,60]
[313136737,1706795480474,-25000.0,0.00048316,60]
[313136738,1706795480485,-25000.0,0.00048316,60]
[313136739,1706795480498,-25000.0,0.00048316,60]
[313136740,1706795480508,-25000.0,0.00048316,60]
[313136741,1706795480518,-25000.0,0.00048316,60]
[313136742,1706795480529,-25000.0,0.00048316,60]
[313136743,1706795480540,-25000.0,0.00048316,60]
[313136744,1706795480552,-25000.0,0.00048316,60]
[313136745,1706795480562,-25000.0,0.00048316,60]
[313136746,1706795480573,-25000.0,0.00048316,60]
[313136747,1706795480583,-25000.0,0.00048316,60]
[313136748,1706795480593,-25000.0,0.00048316,60]
[313136749,1706795480604,-25000.0,0.00048316,60]
[313136750,1706795480614,-25000.0,0.00048316,60]
[313136751,1706795480625,-25000.0,0.00048316,60]
[313136752,1706795480636,-25000.0,0.00048316,60]
[313136753,1706795480646,-25000.0,0.00048316,60]
[313136754,1706795480656,-25000.0,0.00048316,60]
[313136755,1706795480666,-25000.0,0.00048316,30]
[313136756,1706795480676,-25000.0,0.00048316,30]
[313136757,1706795480686,-25000.0,0.00048316,30]
[313136758,1706795480696,-25000.0,0.00048316,30]
[313136759,1706795480706,-4324.19284483,0.00048316,30]
[313136760,1706795480715,-152.96362477,0.00048329,30]
[313136761,1706795480726,-150.0,0.00048333,30]
[313136762,1706795480737,-150.0,0.00048333,30]
[313136763,1706795480747,-500.0,0.00048359,7]
[313136764,1706795480757,-352.80401804,0.00048363,30]
[313136765,1706795480767,-352.80401804,0.00048374,30]
[313136766,1706795480778,-450.0,0.00048414,30]
[313136767,1706795480788,-8666.84714708,0.00048448,24]
[313136768,1706795480797,-333.33845262,0.0004845,30]
[313136769,1706795480808,-150.0,0.00048478,30]
[313136770,1706795480817,-1658.06752764,0.00048489,30]
[313136771,1706795480827,-500.0,0.00048493,30]
[313136772,1706795480837,-500.0,0.00048493,30]
[313136773,1706795480847,-157.0201,0.00048498,24]
[313136774,1706795480857,-255.0,0.000485,2]
[313136775,1706795480866,-315.0,0.000485,2]
[313136776,1706795480876,-11852.9612549,0.000485,10]
[313136777,1706795480886,-300.0,0.000485,46]
[313136778,1706795480896,-2000.0,0.000485,2]
[313136779,1706795480906,-306.0,0.000485,2]
[313136780,1706795480916,-150.0,0.000485,19]
[313136781,1706795480926,-153.02555374,0.00048504,30]
[313136782,1706795480935,-5294.28548672,0.0004851,90]
[313136783,1706795480944,-1078.62871291,0.00048513,30]
[313136784,1706795480954,-151.12552605,0.0004855,39]
[313136785,1706795480963,-150.0,0.00048571,30]
[313136786,1706795480973,-171.89380635,0.00048576,30]
[313136787,1706795480982,-70205.0,0.00048581,30]